fUST/lending_fUST_20250730
["ID","MTS","AMOUNT","RATE_DAILY","PERIOD"]
[376169917,1753883444452,-500.0,0.00020734,2]
[376169919,1753883444461,-258.0966644,0.00020734,2]
[376169921,1753883444471,-500.0,0.00020734,2]
[376169923,1753883444481,-500.0,0.00020734,2]
[376169925,1753883444490,-500.0,0.00020734,2]
[376169927,1753883444499,-500.0,0.00020734,2]
[376169929,1753883444508,-409.71304471,0.00020734,2]
[376169931,1753883444517,-500.0,0.00020734,2]
[376169933,1753883444526,-500.0,0.00020734,2]
[376169935,1753883444535,-500.0,0.00020734,2]
[376169937,1753883444544,-500.0,0.00020734,2]
[376169939,1753883444554,-528.77697949,0.00020734,2]
[376169941,1753883444563,-382.99314273,0.00020734,2]
[376169943,1753883444572,-500.0,0.00020734,2]
[376169945,1753883444582,-500.0,0.00020734,2]
[376169947,1753883444591,-378.11500197,0.00020734,2]
[376169949,1753883444600,-18559.74831512,0.00020735,2]
[376169951,1753883444609,-151.0,0.00020735,2]
[376169953,1753883444618,-151.0,0.00020735,2]
[376169955,1753883444627,-224.729986,0.00020735,2]
[376169957,1753883444638,-224.729986,0.00020735,2]
[376169958,1753883444647,-151.0,0.00020735,2]
[376169959,1753883444656,-167.414223,0.00020735,2]
[376169960,1753883444665,-167.414223,0.00020735,2]
[376169961,1753883444674,-151.0,0.00020735,2]
[376169962,1753883444684,-151.0,0.00020735,2]
[376169963,1753883444693,-151.0,0.00020735,2]
[376169964,1753883444702,-151.586332,0.00020735,2]
[376169965,1753883444711,-1082.98,0.00020735,2]
[376169966,1753883444721,-151.0,0.00020735,2]
[376169967,1753883444730,-539.61,0.00020735,2]
[376169968,1753883444739,-460.0,0.00020735,2]
[376169969,1753883444748,-479.3,0.00020735,2]
[376169970,1753883444757,-568.07,0.00020735,2]
[376169971,1753883444766,-460.0,0.00020736,2]
[376169972,1753883444775,-522.67,0.00020736,2]
[376169973,1753883444784,-621.16,0.00020736,2]
[376169974,1753883444793,-460.0,0.00020736,2]
[376169975,1753883444802,-460.0,0.00020736,2]
[376169976,1753883444811,-151.0,0.00020737,2]
[376169977,1753883444820,-151.0,0.00020737,2]
[376169978,1753883444829,-958.11,0.00020737,2]
[376169979,1753883444838,-648.39,0.00020737,2]
[376169981,1753883444847,-2542.62,0.00020737,2]
[376169983,1753883444856,-655.42,0.00020737,2]
[376169985,1753883444870,-699.34,0.00020737,2]
[376169987,1753883444879,-633.61,0.00020737,2]
[376169989,1753883444889,-489.5,0.00020737,2]
[376169991,1753883444898,-263.0,0.00020808,2]
[376169993,1753883444909,-165.36939,0.00020815,2]
[376169995,1753883444918,-263.0,0.00020852,2]
[376169997,1753883444927,-1116.09055691,0.00020866,4]
[376169998,1753883444936,-263.0,0.00020891,2]
[376170000,1753883444946,-263.0,0.00020893,2]
[376170002,1753883444956,-260.0,0.00020898,2]
[376170004,1753883444966,-394.06021,0.000209,2]
[376170007,1753883444975,-263.0,0.00020902,2]
[376170008,1753883444986,-263.0,0.00020902,2]
[376170010,1753883444995,-263.0,0.00020943,2]
[376170012,1753883445004,-263.0,0.00020946,2]
[376170014,1753883445014,-157.77,0.00020973,2]
[376170016,1753883445023,-500.0,0.00020973,2]
[376170018,1753883445032,-500.0,0.00020973,2]
[376170020,1753883445042,-523.69418917,0.00020973,2]
[376170022,1753883445051,-183.60100721,0.00020973,2]
[376170024,1753883445061,-500.0,0.00020973,2]
[376170026,1753883445070,-158.44706916,0.00020973,2]
[376170028,1753883445079,-258.6,0.00020982,3]
[376170030,1753883445088,-151.0,0.00020989,2]
[376170032,1753883445097,-171.461774,0.00020989,2]
[376170034,1753883445106,-171.461774,0.00020989,2]
[376170036,1753883445115,-306.435197,0.00020989,2]
[376170038,1753883445124,-306.435197,0.00020989,2]
[376170040,1753883445134,-151.0,0.0002099,2]
[376170042,1753883445144,-224.796264,0.0002099,2]
[376170044,1753883445154,-253.950975,0.0002099,2]
[376170046,1753883445163,-253.950975,0.0002099,2]
[376170048,1753883445172,-151.0,0.0002099,2]
[376170050,1753883445182,-151.0,0.0002099,2]
[376170052,1753883445191,-886.56324218,0.00021,2]
[376170054,1753883445200,-151.0,0.00021,2]
[376170056,1753883445210,-141696.11625555,0.00021,4]
[376170058,1753883445220,-151.0,0.00021,2]
[376170060,1753883445230,-151.0,0.00021,2]
[376170062,1753883445239,-600.0,0.00021,2]
[376170064,1753883445248,-151.0,0.00021,2]
[376170066,1753883445257,-171.461774,0.00021,2]
[376170068,1753883445267,-171.461774,0.00021,2]
[376170069,1753883445276,-306.435197,0.00021,2]
[376170071,1753883445286,-306.435197,0.00021,2]
[376170073,1753883445295,-183.184476,0.00021,2]
[376170076,1753883445305,-460.0,0.00021008,2]
[376170077,1753883445314,-1082.98,0.00021009,2]
[376170079,1753883445324,-539.61,0.00021009,2]
[376170081,1753883445334,-460.0,0.00021009,2]
[376170083,1753883445343,-568.07,0.00021009,2]
[376170085,1753883445352,-460.0,0.0002101,2]
[376170087,1753883445362,-621.16,0.0002101,2]
[376170089,1753883445371,-460.0,0.0002101,2]
[376170091,1753883445380,-460.0,0.0002101,2]
[376170093,1753883445392,-958.11,0.00021011,2]
[376170095,1753883445401,-648.39,0.00021011,2]
[376170097,1753883445410,-2542.62,0.00021011,2]
[376170099,1753883445419,-655.42,0.00021011,2]
[376170101,1753883445428,-699.34,0.00021011,2]
[376170103,1753883445438,-633.61,0.00021011,2]
[376170105,1753883445447,-489.5,0.00021011,2]
[376170107,1753883445457,-151.0,0.00021012,2]
[376170109,1753883445466,-181.935466,0.00021012,2]
[376170111,1753883445475,-151.0,0.00021012,2]
[376170113,1753883445484,-263.0,0.00021038,2]
[376170115,1753883445493,-231.789757,0.00021085,2]
[376170117,1753883445502,-863.79149086,0.00021096,2]
[376170119,1753883445511,-1116.09055691,0.00021107,4]
[376170121,1753883445521,-681.511488,0.00021128,2]
[376170123,1753883445531,-263.0,0.00021159,2]
[376170125,1753883445540,-2146.0,0.00021188,2]
[376170127,1753883445549,-635.0,0.00021188,2]
[376170129,1753883445558,-970.0,0.00021188,2]
[376170131,1753883445568,-407.0,0.00021188,2]
[376170133,1753883445577,-460.0,0.00021282,2]
[376170135,1753883445586,-1082.98,0.00021283,2]
[376170137,1753883445596,-539.61,0.00021283,2]
[376170140,1753883445604,-460.0,0.00021283,2]
[376170143,1753883445614,-568.07,0.00021283,2]
[376170145,1753883445623,-460.0,0.00021284,2]
[376170147,1753883445631,-621.16,0.00021284,2]
[376170149,1753883445643,-460.0,0.00021284,2]
[376170151,1753883445652,-460.0,0.00021284,2]
[376170168,1753883445771,-958.11,0.00021285,2]
[376170170,1753883445781,-648.39,0.00021285,2]
[376170172,1753883445790,-2542.62,0.00021285,2]
[376170174,1753883445799,-655.42,0.00021285,2]
[376170177,1753883445809,-699.34,0.00021285,2]
[376170179,1753883445818,-633.61,0.00021285,2]
[376170181,1753883445828,-489.5,0.00021285,2]
[376170183,1753883445837,-151.0,0.00021288,2]
[376170185,1753883445847,-860.129806,0.00021292,2]
[376170187,1753883445856,-760.0,0.000213,4]
[376170189,1753883445867,-258.6,0.00021315,3]
[376170191,1753883445877,-263.0,0.00021331,2]
[376170193,1753883445891,-325.0,0.00021346,2]
[376170195,1753883445901,-1116.09055691,0.00021348,5]
[376170197,1753883445911,-151.0,0.00021388,2]
[376170199,1753883445920,-263.0,0.00021436,2]
[376170201,1753883445930,-167.414223,0.00021443,2]
[376170203,1753883445939,-167.414223,0.00021443,2]
[376170205,1753883445948,-360.0,0.00021446,2]
[376170207,1753883445959,-155.129202,0.00021459,2]
[376170208,1753883445969,-224.729986,0.0002146,2]
[376170210,1753883445978,-224.729986,0.0002146,2]
[376170212,1753883445988,-151.0,0.0002146,2]
[376170215,1753883445997,-151.0,0.00021488,2]
[376170216,1753883446007,-325.0,0.000215,2]
[376170218,1753883446016,-725.52832139,0.00021521,2]
[376170220,1753883446025,-294.0198304,0.00021521,2]
[376170222,1753883446035,-1000.0,0.00021521,2]
[376170224,1753883446045,-263.0,0.00021528,2]
[376170226,1753883446055,-460.0,0.00021556,2]
[376170228,1753883446064,-1082.98,0.00021557,2]
[376170231,1753883446074,-539.61,0.00021557,2]
[376170233,1753883446083,-460.0,0.00021557,2]
[376170235,1753883446092,-568.07,0.00021557,2]
[376170236,1753883446102,-460.0,0.00021558,2]
[376170238,1753883446111,-621.16,0.00021558,2]
[376170240,1753883446120,-460.0,0.00021558,2]
[376170242,1753883446130,-460.0,0.00021558,2]
[376170244,1753883446141,-151.0,0.00021559,2]
[376170246,1753883446151,-151.0,0.00021559,2]
[376170248,1753883446161,-958.11,0.00021559,2]
[376170250,1753883446171,-151.0,0.00021559,2]
[376170252,1753883446180,-648.39,0.00021559,2]
[376170254,1753883446189,-151.0,0.00021559,2]
[376170256,1753883446200,-2542.62,0.00021559,2]
[376170258,1753883446209,-655.42,0.00021559,2]
[376170260,1753883446218,-699.34,0.00021559,2]
[376170262,1753883446228,-633.61,0.00021559,2]
[376170264,1753883446237,-489.5,0.00021559,2]
[376170266,1753883446246,-179.76630381,0.00021559,2]
[376170268,1753883446256,-151.0,0.00021567,2]
[376170270,1753883446265,-151.0,0.00021588,2]
[376170272,1753883446275,-1116.09055691,0.0002159,5]
[376170274,1753883446285,-151.0,0.00021634,2]
[376170276,1753883446295,-151.731627,0.00021634,2]
[376170278,1753883446305,-325.0,0.00021647,2]
[376170280,1753883446314,-258.6,0.00021649,4]
[376170282,1753883446323,-151.0,0.0002165,2]
[376170284,1753883446333,-151.0,0.0002165,2]
[376170286,1753883446342,-253.950975,0.0002165,2]
[376170288,1753883446351,-253.950975,0.0002165,2]
[376170290,1753883446361,-151.0,0.0002165,2]
[376170292,1753883446370,-151.0,0.00021688,2]
[376170294,1753883446380,-152.576947,0.00021733,2]
[376170296,1753883446391,-151.0,0.00021733,2]
[376170298,1753883446400,-287.979816,0.00021733,2]
[376170300,1753883446410,-287.979816,0.00021733,2]
[376170302,1753883446419,-110294.76055125,0.00021739,2]
[376170304,1753883446428,-276.308021,0.00021739,2]
[376170306,1753883446437,-151.0,0.00021739,2]
[376170308,1753883446447,-224.729986,0.00021739,2]
[376170310,1753883446456,-224.729986,0.00021739,2]
[376170312,1753883446465,-151.0,0.00021739,2]
[376170314,1753883446475,-226.303737,0.00021739,2]
[376170316,1753883446484,-151.0,0.00021739,2]
[376170318,1753883446494,-167.414223,0.00021739,2]
[376170320,1753883446503,-167.414223,0.00021739,2]
[376170322,1753883446512,-500.0,0.00021739,2]
[376170324,1753883446521,-449.33726479,0.00021739,2]
[376170326,1753883446530,-151.0,0.00021739,2]
[376170328,1753883446539,-151.0,0.00021739,2]
[376170330,1753883446548,-151.0,0.00021739,2]
[376170331,1753883446558,-151.0,0.00021739,2]
[376170333,1753883446567,-151.0,0.00021739,2]
[376170335,1753883446577,-153.519072,0.00021739,2]
[376170337,1753883446586,-171.461774,0.00021739,2]
[376170339,1753883446596,-171.461774,0.00021739,2]
[376170341,1753883446605,-306.435197,0.00021739,2]
[376170343,1753883446615,-306.435197,0.00021739,2]
[376170345,1753883446624,-151.0,0.00021739,2]
[376170347,1753883446634,-151.0,0.00021739,2]
[376170349,1753883446643,-151.0,0.00021739,2]
[376170351,1753883446653,-325.0,0.00021771,2]
[376170354,1753883446663,-681.511488,0.00021779,2]
[376170356,1753883446672,-681.511488,0.00021779,2]
[376170357,1753883446681,-151.0,0.00021788,2]
[376170360,1753883446691,-460.0,0.0002183,2]
[376170362,1753883446700,-1082.98,0.00021831,2]
[376170364,1753883446710,-539.61,0.00021831,2]
[376170365,1753883446719,-460.0,0.00021831,2]
[376170367,1753883446729,-568.07,0.00021831,2]
[376170369,1753883446738,-1116.09055691,0.00021831,6]
[376170371,1753883446747,-291.15,0.00021832,2]
[376170373,1753883446757,-621.16,0.00021832,2]
[376170375,1753883446766,-460.0,0.00021832,2]
[376170377,1753883446775,-460.0,0.00021832,2]
[376170379,1753883446784,-151.0,0.00021833,2]
[376170381,1753883446793,-151.0,0.00021833,2]
[376170383,1753883446802,-958.11,0.00021833,2]
[376170386,1753883446812,-648.39,0.00021833,2]
[376170387,1753883446821,-2542.62,0.00021833,2]
[376170389,1753883446830,-655.42,0.00021833,2]
[376170391,1753883446840,-699.34,0.00021833,2]
[376170393,1753883446849,-633.61,0.00021833,2]
[376170395,1753883446859,-489.5,0.00021833,2]
[376170397,1753883446873,-500.0,0.00021842,2]
[376170399,1753883446882,-500.0,0.00021842,2]
[376170401,1753883446893,-1423.0,0.00021851,2]
[376170404,1753883446903,-325.0,0.00021853,2]
[376170405,1753883446912,-151.0,0.00021888,2]
[376170407,1753883446921,-196.061424,0.00021918,2]
[376170409,1753883446930,-196.061424,0.00021918,2]
[376170411,1753883446938,-196.061424,0.00021918,2]
[376170413,1753883446948,-196.061424,0.00021918,2]
[376170415,1753883446957,-196.061424,0.00021918,2]
[376170417,1753883446968,-196.061424,0.00021918,2]
[376170419,1753883446978,-306.0,0.00021974,2]
[376170421,1753883446987,-258.6,0.00021982,4]
[376170424,1753883446997,-151.0,0.00021988,2]
[376170425,1753883447006,-460.0,0.00021994,2]
[376170427,1753883447015,-151.0,0.00021998,7]
[376170429,1753883447024,-329.520935,0.00021998,7]
[376170431,1753883447034,-329.520935,0.00021998,7]
[376170433,1753883447044,-200.0,0.00021999,2]
[376170435,1753883447053,-13618.82,0.00022,7]
[376170437,1753883447062,-1682.97,0.00022,7]
[376170439,1753883447071,-151.0,0.00022,7]
[376170441,1753883447080,-151.0,0.00022,7]
[376170443,1753883447089,-151.0,0.00022,7]
[376170445,1753883447098,-151.0,0.00022,7]
[376170447,1753883447110,-151.0,0.00022,7]
[376170449,1753883447119,-151.0,0.00022,7]
[376170451,1753883447128,-1336.08,0.00022,2]
[376170453,1753883447138,-181.0,0.00022,2]
[376170455,1753883447147,-325.0,0.00022004,2]
[376170457,1753883447157,-151.0,0.00022007,7]
[376170459,1753883447166,-151.0,0.0002205,7]
[376170461,1753883447175,-151.0,0.0002205,7]
[376170462,1753883447185,-253.950975,0.0002205,7]
[376170463,1753883447194,-253.950975,0.0002205,7]
[376170464,1753883447205,-1500.0,0.00022068,2]
[376170465,1753883447215,-681.511488,0.00022072,7]
[376170466,1753883447224,-681.511488,0.00022072,7]
[376170467,1753883447233,-1116.09055691,0.00022072,6]
[376170468,1753883447243,-151.0,0.00022088,2]
[376170470,1753883447252,-151.0,0.000221,7]
[376170472,1753883447262,-4532.63957253,0.000221,3]
[376170474,1753883447272,-214.87999826,0.000221,3]
[376170476,1753883447281,-460.0,0.00022104,2]
[376170478,1753883447290,-1082.98,0.00022105,2]
[376170480,1753883447300,-539.61,0.00022105,2]
[376170482,1753883447309,-460.0,0.00022105,2]
[376170484,1753883447318,-568.07,0.00022105,2]
[376170486,1753883447327,-151.0,0.00022106,7]
[376170488,1753883447337,-621.16,0.00022106,2]
[376170490,1753883447346,-171.461774,0.00022106,7]
[376170492,1753883447355,-171.461774,0.00022106,7]
[376170494,1753883447364,-196.061424,0.00022106,7]
[376170496,1753883447373,-196.061424,0.00022106,7]
[376170498,1753883447383,-460.0,0.00022106,2]
[376170500,1753883447394,-306.435197,0.00022106,7]
[376170502,1753883447403,-306.435197,0.00022106,7]
[376170504,1753883447412,-460.0,0.00022106,2]
[376170506,1753883447422,-151.0,0.00022107,7]
[376170508,1753883447432,-151.0,0.00022107,7]
[376170510,1753883447441,-151.0,0.00022107,7]
[376170512,1753883447451,-151.0,0.00022107,7]
[376170514,1753883447460,-958.11,0.00022107,2]
[376170516,1753883447470,-648.39,0.00022107,2]
[376170518,1753883447479,-2542.62,0.00022107,2]
[376170520,1753883447488,-655.42,0.00022107,2]
[376170522,1753883447498,-699.34,0.00022107,2]
[376170524,1753883447507,-633.61,0.00022107,2]
[376170526,1753883447516,-489.5,0.00022107,2]
[376170528,1753883447526,-325.0,0.00022124,2]
[376170530,1753883447537,-2599.80603784,0.00022127,2]
[376170532,1753883447547,-151.0,0.00022188,2]
[376170534,1753883447556,-151.0,0.000222,7]
[376170536,1753883447565,-151.0,0.00022288,2]
[376170538,1753883447574,-151.0,0.000223,5]
[376170540,1753883447584,-1116.09055691,0.00022314,7]
[376170542,1753883447593,-258.6,0.00022316,4]
[376170544,1753883447602,-167.414223,0.0002235,7]
[376170546,1753883447611,-167.414223,0.0002235,7]
[376170548,1753883447620,-325.0,0.0002235,2]
[376170550,1753883447629,-587.0,0.00022364,2]
[376170552,1753883447639,-460.0,0.00022378,2]
[376170554,1753883447648,-1082.98,0.00022379,2]
[376170556,1753883447657,-539.61,0.00022379,2]
[376170558,1753883447666,-460.0,0.00022379,2]
[376170560,1753883447675,-568.07,0.00022379,2]
[376170562,1753883447684,-192.027042,0.0002238,7]
[376170564,1753883447693,-621.16,0.0002238,2]
[376170566,1753883447702,-460.0,0.0002238,2]
[376170568,1753883447711,-457.08762408,0.0002238,2]
[376170570,1753883447720,-151.0,0.00022381,7]
[376170572,1753883447730,-151.0,0.00022381,7]
[376170574,1753883447739,-151.0,0.00022381,7]
[376170576,1753883447748,-151.0,0.00022381,7]
[376170578,1753883447757,-958.11,0.00022381,2]
[376170580,1753883447766,-151.0,0.00022381,7]
[376170582,1753883447775,-151.0,0.00022381,7]
[376170584,1753883447784,-648.39,0.00022381,2]
[376170586,1753883447793,-2542.62,0.00022381,2]
[376170588,1753883447802,-655.42,0.00022381,2]
[376170590,1753883447811,-699.34,0.00022381,2]
[376170592,1753883447820,-633.61,0.00022381,2]
[376170594,1753883447829,-489.5,0.00022381,2]
[376170596,1753883447838,-151.0,0.00022381,7]
[376170598,1753883447847,-151.0,0.00022388,2]
[376170599,1753883447856,-1000.0,0.0002239,2]
[376170600,1753883447870,-1000.0,0.0002239,2]
[376170601,1753883447879,-400.0,0.0002239,2]
[376170602,1753883447889,-151.0,0.0002239,7]
[376170603,1753883447898,-151.0,0.0002239,7]
[376170604,1753883447909,-151.0,0.0002239,7]
[376170605,1753883447918,-151.0,0.0002239,7]
[376170606,1753883447928,-151.0,0.0002239,7]
[376170607,1753883447937,-151.0,0.0002239,7]
[376170608,1753883447947,-151.0,0.0002239,7]
[376170609,1753883447957,-224.729986,0.0002239,7]
[376170610,1753883447966,-224.729986,0.0002239,7]
[376170611,1753883447975,-151.0,0.0002239,7]
[376170612,1753883447985,-2000.0,0.000224,2]
[376170613,1753883447994,-151.0,0.000224,7]
[376170614,1753883448003,-500.0,0.00022473,2]
[376170615,1753883448013,-500.0,0.00022473,2]
[376170616,1753883448022,-500.0,0.00022473,2]
[376170617,1753883448032,-500.0,0.00022473,2]
[376170618,1753883448041,-502.49019685,0.00022473,2]
[376170619,1753883448050,-200.0,0.00022473,2]
[376170620,1753883448059,-500.0,0.00022473,2]
[376170621,1753883448068,-500.0,0.00022473,2]
[376170622,1753883448078,-500.0,0.00022473,2]
[376170623,1753883448087,-500.0,0.00022473,2]
[376170624,1753883448096,-500.0,0.00022473,2]
[376170625,1753883448106,-500.0,0.00022473,2]
[376170626,1753883448116,-500.0,0.00022473,2]
[376170627,1753883448125,-500.0,0.00022473,2]
[376170628,1753883448134,-151.0,0.00022488,2]
[376170629,1753883448144,-200.51240394,0.00022489,2]
[376170630,1753883448153,-325110.0299471,0.0002249,7]
[376170631,1753883448163,-128670.82145889,0.0002249,7]
[376170632,1753883448172,-151.0,0.0002249,7]
[376170633,1753883448182,-151.0,0.0002249,7]
[376170634,1753883448191,-166.1,0.0002249,7]
[376170635,1753883448200,-161.551932,0.0002249,7]
[376170636,1753883448210,-287.979816,0.0002249,7]
[376170637,1753883448219,-287.979816,0.0002249,7]
[376170638,1753883448228,-287.979816,0.0002249,7]
[376170639,1753883448238,-287.979816,0.0002249,7]
[376170640,1753883448247,-151.0,0.0002249,7]
[376170641,1753883448257,-151.0,0.0002249,7]
[376170642,1753883448266,-151.0,0.0002249,7]
[376170643,1753883448275,-151.0,0.0002249,7]
[376170644,1753883448284,-329.520935,0.0002249,7]
[376170645,1753883448293,-329.520935,0.0002249,7]
[376170646,1753883448303,-329.520935,0.0002249,7]
[376170647,1753883448312,-329.520935,0.0002249,7]
[376170649,1753883448322,-151.0,0.0002249,7]
[376170651,1753883448331,-151.0,0.0002249,7]
[376170653,1753883448340,-253.950975,0.0002249,7]
[376170655,1753883448349,-253.950975,0.0002249,7]
[376170657,1753883448358,-253.950975,0.0002249,7]
[376170659,1753883448367,-253.950975,0.0002249,7]
[376170661,1753883448376,-151.0,0.0002249,7]
[376170663,1753883448386,-681.511488,0.0002249,7]
[376170665,1753883448395,-681.511488,0.0002249,7]
[376170677,1753883448505,-681.511488,0.0002249,7]
[376170679,1753883448515,-681.511488,0.0002249,7]
[376170681,1753883448524,-151.0,0.0002249,7]
[376170683,1753883448533,-151.0,0.0002249,7]
[376170685,1753883448542,-151.0,0.0002249,7]
[376170688,1753883448552,-151.0,0.0002249,7]
[376170690,1753883448561,-151.0,0.0002249,7]
[376170692,1753883448570,-151.775212,0.0002249,7]
[376170694,1753883448580,-151.0,0.0002249,7]
[376170695,1753883448589,-151.0,0.0002249,7]
[376170697,1753883448598,-151.0,0.0002249,7]
[376170699,1753883448608,-151.0,0.0002249,7]
[376170701,1753883448617,-151.0,0.0002249,7]
[376170703,1753883448626,-151.0,0.0002249,7]
[376170705,1753883448637,-151.0,0.0002249,7]
[376170707,1753883448646,-151.070845,0.0002249,7]
[376170709,1753883448655,-151.0,0.0002249,7]
[376170711,1753883448665,-151.0,0.0002249,7]
[376170713,1753883448674,-151.0,0.0002249,7]
[376170715,1753883448684,-151.0,0.0002249,7]
[376170717,1753883448693,-151.0,0.0002249,7]
[376170719,1753883448703,-151.0,0.0002249,7]
[376170721,1753883448712,-151.0,0.0002249,7]
[376170724,1753883448722,-151.0,0.0002249,7]
[376170726,1753883448731,-151.0,0.0002249,7]
[376170727,1753883448740,-151.0,0.0002249,7]
[376170729,1753883448749,-151.0,0.0002249,7]
[376170731,1753883448758,-151.0,0.0002249,7]
[376170734,1753883448768,-22697.94899066,0.0002249,7]
[376170736,1753883448777,-151.0,0.0002249,7]
[376170737,1753883448786,-241.326116,0.0002249,7]
[376170739,1753883448795,-151.0,0.0002249,7]
[376170742,1753883448805,-151.0,0.0002249,7]
[376170744,1753883448814,-224.729986,0.0002249,7]
[376170746,1753883448823,-224.729986,0.0002249,7]
[376170747,1753883448831,-224.729986,0.0002249,7]
[376170750,1753883448841,-224.729986,0.0002249,7]
[376170752,1753883448850,-151.0,0.0002249,7]
[376170754,1753883448860,-151.0,0.0002249,7]
[376170756,1753883448869,-167.414223,0.0002249,7]
[376170758,1753883448882,-167.414223,0.0002249,7]
[376170759,1753883448892,-167.414223,0.0002249,7]
[376170760,1753883448902,-167.414223,0.0002249,7]
[376170761,1753883448911,-151.0,0.0002249,7]
[376170762,1753883448922,-151.0,0.0002249,7]
[376170763,1753883448931,-151.0,0.0002249,7]
[376170764,1753883448941,-151.0,0.0002249,7]
[376170765,1753883448950,-184.48448,0.0002249,7]
[376170766,1753883448960,-501.83333416,0.0002249,8]
[376170767,1753883448970,-151.0,0.0002249,7]
[376170768,1753883448980,-151.0,0.0002249,7]
[376170769,1753883448989,-151.0,0.0002249,7]
[376170770,1753883448999,-151.0,0.0002249,7]
[376170771,1753883449007,-171.461774,0.0002249,7]
[376170772,1753883449017,-171.461774,0.0002249,7]
[376170773,1753883449026,-171.461774,0.0002249,7]
[376170774,1753883449036,-171.461774,0.0002249,7]
[376170775,1753883449046,-196.061424,0.0002249,7]
[376170776,1753883449055,-196.061424,0.0002249,7]
[376170777,1753883449064,-196.061424,0.0002249,7]
[376170778,1753883449073,-196.061424,0.0002249,7]
[376170779,1753883449083,-306.435197,0.0002249,7]
[376170780,1753883449092,-306.435197,0.0002249,7]
[376170781,1753883449103,-306.435197,0.0002249,7]
[376170782,1753883449112,-306.435197,0.0002249,7]
[376170783,1753883449122,-500.0,0.0002249,8]
[376170784,1753883449131,-151.0,0.0002249,7]
[376170785,1753883449141,-151.0,0.0002249,7]
[376170786,1753883449150,-151.0,0.00022496,7]
[376170787,1753883449160,-151.0,0.00022496,7]
[376170788,1753883449169,-151.0,0.00022496,7]
[376170789,1753883449179,-151.0,0.00022496,7]
[376170790,1753883449188,-167.414223,0.00022496,7]
[376170791,1753883449197,-167.414223,0.00022496,7]
[376170792,1753883449206,-1008.7330561,0.000225,2]
[376170793,1753883449215,-3737.84,0.000225,7]
[376170794,1753883449225,-66686.1,0.000225,2]
[376170795,1753883449233,-1380.88,0.000225,2]
[376170796,1753883449242,-151.0,0.000225,7]
[376170797,1753883449252,-151.0,0.000225,7]
[376170798,1753883449261,-287.979816,0.000225,7]
[376170799,1753883449271,-287.979816,0.000225,7]
[376170800,1753883449280,-151.0,0.000225,7]
[376170801,1753883449289,-172.685324,0.000225,7]
[376170802,1753883449298,-329.520935,0.000225,7]
[376170803,1753883449308,-329.520935,0.000225,7]
[376170804,1753883449318,-329.520935,0.000225,7]
[376170805,1753883449327,-329.520935,0.000225,7]
[376170806,1753883449336,-151.0,0.000225,7]
[376170807,1753883449346,-253.950975,0.000225,7]
[376170808,1753883449355,-253.950975,0.000225,7]
[376170809,1753883449365,-151.0,0.000225,7]
[376170810,1753883449374,-681.511488,0.000225,7]